Workbook

Sheet מבוא להצמדה שאלות 1-3
I1: הצמדות
G13: שאלה 1 | J13: חודש | K13: מדד בנקודות | L13: חישוב שינוי במדד | M13: שינוי שנתי בנקודות
J14: 2020-12-01 | K14: 105
J15: 2021-03-01 | K15: 125 | L15: =(K15/K14)-1 -> 19.05%
J16: 2021-06-01 | K16: 115 | L16: =(K16/K15)-1 -> -8.00%
J17: 2021-09-01 | K17: 126 | L17: 9.57%
J18: 2021-12-01 | K18: 126 | L18: 0.00%
M19: =K18/K14-1 -> 20.00%
I41: דוגמא לשימוש במדד:
F44: שאלה 2
I49: נתונים:
I50: ריבית נומינלית | J50: 8%
I51: ריבית ראלית | J51: 5%
I52: מדד שנתי | J52: 1.74%
I53: גובה השקעה | J53: 50,000.00
I54: שנות השקעה | J54: 1
I55: ערך עתידי של ליעד | J55: =FV(J50,J54,,-J53) -> ₪ 54,000.00
I56: ערך עתידי של יהל | J56: =FV(J51,J54,,-J53)*(1+J52) -> ₪ 53,413.50
I60: נוסחת פישר:
I61: (1 + Rn) = (1 + Rr) * (1 + h)
F70: שאלה 3
I77: נתונים:
I78: ריבית נומינלית | J78: 8% | K78: =1+J78 -> 1.08 | L78: =K78/K79-1 -> 2.86%
I79: ריבית ראלית | J79: 5% | K79: =1+J79 -> 1.05
I80: מדד שנתי | J80: 1.74% | K80: ?
I81: גובה השקעה | J81: 50,000.00
I82: שנות השקעה | J82: 1
I83: ערך עתידי של ליעד | J83: =FV(J78,J82,,-J81) -> ₪ 54,000.00
I84: ערך עתידי של יהל | J84: =FV(J79,J82,,-J81)*(1+J80) -> ₪ 53,413.50
I88: נוסחת פישר:
I89: (1 + Rn) = (1 + Rr) * (1 + h)

Sheet פתרון תרגיל בית שאלות 4-8
H3: שאלה 4
J8: א | L8: 5.00% | M8: RN | N8: רבעון | Q8: נוסחת פישר:
L9: 4 | M9: N | Q9: (1 + Rn) = (1 + Rr) * (1 + h)
L10: 0.50% | M10: H | N10: אינפלציה חודשית
K13: =(1+L13) -> 1.21550625 | L13: =(1+L8)^(4)-1 -> 21.55% | M13: RN | N13: שנה
K14: =(1+L14) -> 1.061677812 | L14: =(1+L10)^(12)-1 -> 6.17% | M14: H | N14: שנה
J15: ב
K16: =K13/K14-1 -> 14.49%
H27: שאלה 5
J30: 1000 | K30: PMT | N30: 5.20% | O30: Rnom | P30: שנתית
J31: =20*52 -> 1040 | K31: N | N31: 1.90% | O31: Rπe | P31: שנתית
J32: =PV(J33,J31,J30,,) -> ₪ -761,236.43 | K32: PV
J33: =M38 -> 0.06% | K33: RR | M33: =(1+N33) -> 1.001 | N33: =N30/Q33 -> 0.001 | O33: Rnom | P33: שבועית | Q33: 52
M34: =(1+N34) -> 1.000365385 | N34: =N31/Q34 -> 0.0003653846154 | O34: Rπe | P34: שבועית | Q34: 52
K35: נוסחת פישר:
K36: (1 + Rn) = (1 + Rr) * (1 + h)
M38: =M33/M34-1 -> 0.06% | O38: RR | P38: PV
O39: RN | P39: FV
H53: שאלה 6
O55: שנה | P55: חודשית
K56: נוסחת פישר: | N56: =1+O56 -> 1.087310662 | O56: =(1+P56)^12-1 -> 0.08731066192 | P56: 0.70% | Q56: Rnom
K57: (1 + Rn) = (1 + Rr) * (1 + h) | N57: =1+O57 -> 1.03659998 | O57: =(1+P57)^12-1 -> 0.03659998029 | P57: 0.30% | Q57: Rr
N59: =N56/N57-1 -> 4.89%
H72: שאלה 7
I79: א | N79: שנה
J80: נוסחת פישר: | M80: =1+N80 -> 1.09 | N80: =O80 -> 9.00% | O80: 9.00% | P80: Rnom
J81: (1 + Rn) = (1 + Rr) * (1 + h) | M81: =1+N81 -> 1.05 | N81: =O81 -> 5.00% | O81: 5.00% | P81: Rr
M83: =M80/M81-1 -> 3.81%
I85: ב
J86: =PMT(J89,J87,,J90) -> ₪ -2,364.93 | K86: PMT
J87: =20*4 -> 80 | K87: N
J88: ₪ 0.00 | K88: PV
J89: =(1+N80)^(0.25)-1 -> 2.18% | K89: RN
J90: 500000 | K90: FV
H99: שאלה 8 | I99: נתונים:
I100: הלוואה | J100: 50,000 | K100: PV | M100: 6.00% | N100: ב. | O100: 135.1 | P100: MN
I101: חודשים | J101: =3*12 -> 36 | K101: n | M101: 12 | O101: 128.4 | P101: M0
I102: ריבית | J102: =M100/M101 -> 0.50% | K102: r | P102: =M116*O100/O101 -> ₪ 1,600.47
J103: =PMT(J102,J101,-J100,,) -> ₪ 1,521.10 | K103: PMT
I104: מספר תקבול | J104: יתרת הקרן בתחילת תקופה | K104: תשלום ע"ח קרן | L104: תשלום ע"ח ריבית | M104: סך הכל תשלום | N104: יתרת הקרן בסוף התקופה
I105: 1 | J105: =J100 -> ₪ 50,000.00 | K105: =M105-L105 -> ₪ 1,271.10 | L105: =$J$102*J105 -> ₪ 250.00 | M105: =$J$103 -> ₪ 1,521.10 | N105: =J105-K105 -> ₪ 48,728.90 | O105: ג.
I106: 2 | J106: =N105 -> ₪ 48,728.90 | K106: =M106-L106 -> ₪ 1,277.45 | L106: =$J$102*J106 -> ₪ 243.64 | M106: =$J$103 -> ₪ 1,521.10 | N106: =J106-K106 -> ₪ 47,451.45 | P106: =N116*O100/O101 -> ₪ 36,111.16
I107: 3 | J107: =N106 -> ₪ 47,451.45 | K107: ₪ 1,283.84 | L107: ₪ 237.26 | M107: ₪ 1,521.10 | N107: ₪ 46,167.61
I108: 4 | J108: ₪ 46,167.61 | K108: ₪ 1,290.26 | L108: ₪ 230.84 | M108: ₪ 1,521.10 | N108: ₪ 44,877.35
I109: 5 | J109: ₪ 44,877.35 | K109: ₪ 1,296.71 | L109: ₪ 224.39 | M109: ₪ 1,521.10 | N109: ₪ 43,580.64
I110: 6 | J110: ₪ 43,580.64 | K110: ₪ 1,303.19 | L110: ₪ 217.90 | M110: ₪ 1,521.10 | N110: ₪ 42,277.45
I111: 7 | J111: ₪ 42,277.45 | K111: ₪ 1,309.71 | L111: ₪ 211.39 | M111: ₪ 1,521.10 | N111: ₪ 40,967.74
I112: 8 | J112: ₪ 40,967.74 | K112: ₪ 1,316.26 | L112: ₪ 204.84 | M112: ₪ 1,521.10 | N112: ₪ 39,651.48
I113: 9 | J113: ₪ 39,651.48 | K113: ₪ 1,322.84 | L113: ₪ 198.26 | M113: ₪ 1,521.10 | N113: ₪ 38,328.64
I114: 10 | J114: ₪ 38,328.64 | K114: ₪ 1,329.45 | L114: ₪ 191.64 | M114: ₪ 1,521.10 | N114: ₪ 36,999.19
I115: 11 | J115: ₪ 36,999.19 | K115: ₪ 1,336.10 | L115: ₪ 185.00 | M115: ₪ 1,521.10 | N115: ₪ 35,663.09
I116: 12 | J116: ₪ 35,663.09 | K116: ₪ 1,342.78 | L116: ₪ 178.32 | M116: ₪ 1,521.10 | N116: ₪ 34,320.31
I117: 13 | J117: ₪ 34,320.31 | K117: ₪ 1,349.50 | L117: ₪ 171.60 | M117: ₪ 1,521.10 | N117: ₪ 32,970.81
I118: 14 | J118: ₪ 32,970.81 | K118: ₪ 1,356.24 | L118: ₪ 164.85 | M118: ₪ 1,521.10 | N118: ₪ 31,614.57
I119: 15 | J119: ₪ 31,614.57 | K119: ₪ 1,363.02 | L119: ₪ 158.07 | M119: ₪ 1,521.10 | N119: ₪ 30,251.54
I120: 16 | J120: ₪ 30,251.54 | K120: ₪ 1,369.84 | L120: ₪ 151.26 | M120: ₪ 1,521.10 | N120: ₪ 28,881.70
I121: 17 | J121: ₪ 28,881.70 | K121: ₪ 1,376.69 | L121: ₪ 144.41 | M121: ₪ 1,521.10 | N121: ₪ 27,505.02
I122: 18 | J122: ₪ 27,505.02 | K122: ₪ 1,383.57 | L122: ₪ 137.53 | M122: ₪ 1,521.10 | N122: ₪ 26,121.44
I123: 19 | J123: ₪ 26,121.44 | K123: ₪ 1,390.49 | L123: ₪ 130.61 | M123: ₪ 1,521.10 | N123: ₪ 24,730.95
I124: 20 | J124: ₪ 24,730.95 | K124: ₪ 1,397.44 | L124: ₪ 123.65 | M124: ₪ 1,521.10 | N124: ₪ 23,333.51
I125: 21 | J125: ₪ 23,333.51 | K125: ₪ 1,404.43 | L125: ₪ 116.67 | M125: ₪ 1,521.10 | N125: ₪ 21,929.08
I126: 22 | J126: ₪ 21,929.08 | K126: ₪ 1,411.45 | L126: ₪ 109.65 | M126: ₪ 1,521.10 | N126: ₪ 20,517.63
I127: 23 | J127: ₪ 20,517.63 | K127: ₪ 1,418.51 | L127: ₪ 102.59 | M127: ₪ 1,521.10 | N127: ₪ 19,099.12
I128: 24 | J128: ₪ 19,099.12 | K128: ₪ 1,425.60 | L128: ₪ 95.50 | M128: ₪ 1,521.10 | N128: ₪ 17,673.52
I129: 25 | J129: ₪ 17,673.52 | K129: ₪ 1,432.73 | L129: ₪ 88.37 | M129: ₪ 1,521.10 | N129: ₪ 16,240.79
I130: 26 | J130: ₪ 16,240.79 | K130: ₪ 1,439.89 | L130: ₪ 81.20 | M130: ₪ 1,521.10 | N130: ₪ 14,800.90
I131: 27 | J131: ₪ 14,800.90 | K131: ₪ 1,447.09 | L131: ₪ 74.00 | M131: ₪ 1,521.10 | N131: ₪ 13,353.81
I132: 28 | J132: ₪ 13,353.81 | K132: ₪ 1,454.33 | L132: ₪ 66.77 | M132: ₪ 1,521.10 | N132: ₪ 11,899.48
I133: 29 | J133: ₪ 11,899.48 | K133: ₪ 1,461.60 | L133: ₪ 59.50 | M133: ₪ 1,521.10 | N133: ₪ 10,437.88
I134: 30 | J134: ₪ 10,437.88 | K134: ₪ 1,468.91 | L134: ₪ 52.19 | M134: ₪ 1,521.10 | N134: ₪ 8,968.97
I135: 31 | J135: ₪ 8,968.97 | K135: ₪ 1,476.25 | L135: ₪ 44.84 | M135: ₪ 1,521.10 | N135: ₪ 7,492.72
I136: 32 | J136: ₪ 7,492.72 | K136: ₪ 1,483.63 | L136: ₪ 37.46 | M136: ₪ 1,521.10 | N136: ₪ 6,009.09
I137: 33 | J137: ₪ 6,009.09 | K137: ₪ 1,491.05 | L137: ₪ 30.05 | M137: ₪ 1,521.10 | N137: ₪ 4,518.04
I138: 34 | J138: ₪ 4,518.04 | K138: ₪ 1,498.51 | L138: ₪ 22.59 | M138: ₪ 1,521.10 | N138: ₪ 3,019.53
I139: 35 | J139: ₪ 3,019.53 | K139: ₪ 1,506.00 | L139: ₪ 15.10 | M139: ₪ 1,521.10 | N139: ₪ 1,513.53
I140: 36 | J140: ₪ 1,513.53 | K140: ₪ 1,513.53 | L140: ₪ 7.57 | M140: ₪ 1,521.10 | N140: ₪ 0.00

Sheet שאלות חזרה מבחינות 9-10
I1: חזרה מימון בתנאי אינפלציה
G2: שאלה 9 | I2: סבתא אתי הפקידה בבנק "מאגדים" בתחילת שנת 2020 סך של 80,000 ש"ח לתקופה של שנה. סבתא אתי הינה לקוחת "VIP" , הבנק הציע לה ריבית שנתית קבועה מראש של 2.8% (תכנית לא-צמודה). סבתא אתי קיבלה בסוף השנה 83,700 ש"ח. האינפלציה בשנת 2020 הסתכמה ב -3.7%. בכמה עלה/ירד ריאלית כספה של סבתא אתי בשנה זו?
I5: נתונים:
I6: הלוואה | J6: 80,000.00 | K6: pv
I7: תקופות | J7: 1 | K7: n
I8: ריבית נומינלית | J8: 2.80% | K8: Rn
I9: אינפלציה | J9: 3.70% | K9: π
I10: חישוב ריבית ראלית על פי נוסחת פישר - | K10: =(1+J8)/(1+J9)-1 -> -0.868% | L10: כסף ירד ריאלית ב- 0.876%
I14: 10 | J14: מלאים | K14: 5 | L14: מלאים
I15: 10 | J15: חצי | K15: 5 | L15: ריקים
I16: 10 | J16: ריקים
G28: שאלה 10 | I28: ניר קיבל בבנק הלוואת בלון של 90,000 ש"ח לשנה. הריבית השנתית: 5%. ההלוואה צמודה למדד המחירים. מדד המחירים לצרכן ביום קבלת ההלוואה : 104.8 נקודות. מדד המחירים לצרכן ביום החזרת ההלוואה: 103.9 נקודות. מהו הסכום שניר החזיר ביום פירעון ההלוואה?
I32: נתונים: | L32: פיתרון:
I33: הלוואה | J33: 90,000 | K33: pv | L33: ערך עתידי של ההלוואה ללא הצמדה | M33: =FV(J34,J35,,-J33) -> ₪ 94,500.00 | N33: הלוואת בלון
I34: ריבית | J34: 5.0% | K34: r | L34: ערך עתידי של ההלוואה כולל הצמדה | M34: =M33*(J37/J36) -> ₪ 93,688.45
I35: תקופות | J35: 1 | K35: n | M35: המדד ירד ולכן ההצמדה הקטינה את סכום ההחזר
I36: מדד התחלה | J36: 104.8 | K36: Mo
I37: מדד סיום | J37: 103.9 | K37: Mn
